{"text_format":"1","workbook":"xlsx","n_sheets":2,"sheets":["ТКП","1632-2021-3.4-КЖ "],"not_rendered":{"charts":0,"images":0,"macros":1,"external_links":0,"defined_names":2,"comments":0,"pivot_tables":0},"unopened":[],"bounds":{"document_bytes":16777216,"sheet_cells":100000,"rows_first":2000,"rows_last":500,"rows_between":2000,"halvings":0,"cell_chars":16384,"cell_head_chars":4096},"cells_cut":0,"cells_raw":0,"read":"whole","date_system":"1900"}

{"sheet":"ТКП","index":0,"n_rows":72,"n_cols":5,"rows_kept":72,"cut":false,"hidden":false,"merged":[[18,3,18,4],[0,0,0,1],[0,3,0,4],[1,0,1,1],[1,2,1,4],[2,0,2,1],[4,0,4,1],[5,0,5,1],[7,3,7,4],[15,3,15,4],[16,3,16,4],[17,3,17,4],[56,3,56,4],[58,0,58,4],[59,0,59,4],[60,0,60,4],[19,0,53,0],[19,1,53,1],[19,2,53,2],[19,3,53,4],[54,3,54,4],[55,3,55,4]]}
[null,null,null,"Коммерческое предложение к Документации о закупке № ____"]
["Наименование закупки: ",null,"Выполнение комплекса работ по строительству здания Ангар ТМЦ на объекте «Терминал по перевалке минеральных удобрений в МТП Усть-Луга. Береговые объекты терминала» "]
["Исх. № ______________ от __.__.2025г."]
[]
["Наименование Участника:"]
["ИНН Участника "]
[]
["№ п/п","Наименование","Требование ООО «ЕТУ»","Предложение Участника, руб без НДС"]
[null,null,null,"Материалы","Работы"]
[1,"Выполнение комплекса работ","Объем и состав работ в соответствии с ТЗ"]
[2,"Итоговая стоимость строительно-монтажных работ:"]
["2.1","1632-2021-3.4-КЖ ",null,{"$f":"'1632-2021-3.4-КЖ '!I19","v":0},{"$f":"'1632-2021-3.4-КЖ '!G19","v":0}]
["2.2","1632-2021-3.4-КМ ",null,{"$f":"#REF!","v":{"$error":"#REF!"}},{"$f":"#REF!","v":{"$error":"#REF!"}}]
["2.3","1632-2021-3.4-АР ",null,{"$f":"#REF!","v":{"$error":"#REF!"}},{"$f":"#REF!","v":{"$error":"#REF!"}}]
[null,null,null,{"$f":"SUM(D10:D14)","v":{"$error":"#REF!"}},{"$f":"SUM(E10:E14)","v":{"$error":"#REF!"}}]
[3,"НДС",0.2,{"$f":"(D15+E15)*0.2","v":{"$error":"#REF!"}}]
[4,"Итоговая стоимость СМР, руб с НДС",null,{"$f":"D15+E15+D16","v":{"$error":"#REF!"}}]
[5,"Договорной коэффициент к сметной стоимости* ","Кд - договорной коэффициент начисляется для приведения итоговой сметной стоимости к стоимости Договора. \nКоэффициент применяется при расчете стоимости строительно-монтажных работ, за исключением стоимости материально-технических ресурсов. Коэффициент фиксируется при направлении ТКП и дальнейшей корректировке не подлежит.\n"]
[6,"Срок выполнения работ","не более 120 календарных дней с даты заключения договора ","Участником указывается согласие или встречные условия"]
[7,"Порядок оплаты","Допускается авансирование работ в объеме до 50% стоимости договора, с целью мобилизации, закупки/поставки материалов. Авансирование осуществляется при предоставлении Подрядчиком Банковской гарантии возврата авансового платежа в размере аванса.  Текст банковской гарантии и банк согласовывается с Заказчиком заранее.\nЕсли сумма аванса не превышает 5 000 000 руб. допускается авансирование без предоставления банковской гарантии, при согласовании Заказчика.\n В случае авансирования Заказчик оплачивает Подрядчику аванс в течении 10 (десяти) рабочих дней от даты подписания Договора при условии предоставления Подрядчиком счета и оригинала, согласованной с Заказчиком безотзывной банковской гарантии возврата авансового платежа.\nРасчеты за фактически выполненный Подрядчиком и принятый Заказчиком объем Работ по договору осуществляется ежемесячно в установленном порядке в течение 10 (десяти) рабочих дней с момента получения от Подрядчика счета на оплату и подписанных Сторонами без замечаний Актов о приемке выполненных работ (Форма № КС-2), Справок о стоимости выполненных работ и затрат (Форма № КС-3), полного комплекта исполнительной документации и иных необходимых документов, предусмотренных Договором, при условии предоставления счета/счет-фактуры.\nОплата выполненных Работ осуществляется Заказчиком  с удержанием денежных средств в размере 5% от стоимости выполненных Работ (гарантийное удержание) и за вычетом авансового платежа в размере ___% от стоимости выполненных за месяц Работ.\nПодрядчик обязан использовать аванс только для оплаты поставок конструкций, материалов и оборудования, а также для оплаты расходов, связанных с мобилизацией и выполнением строительных работ, предусмотренных условиями настоящего Договора. \nОкончательный расчет за выполненные Работы по Объекту производится Заказчиком после завершения всех предусмотренных Договором Работ и устранения выявленных дефектов, передачи Заказчику по акту полного комплекта исполнительной документации, в срок не позднее 10 (десяти) банковских дней с момента подписания Сторонами акт приема-передачи результата выполненных работ.","Участником указывается % аванса и согласие или встречные условия"]
[]
[]
[]
[]
[]
[]
[]
[]
[]
[]
[]
[]
[]
[]
[]
[]
[]
[]
[]
[]
[]
[]
[]
[]
[]
[]
[]
[]
[]
[]
[]
[]
[]
[]
[8,"Гарантия на выполненные работы","Гарантийный срок на результат работы Подрядчика устанавливается не менее 36  месяцев предусмотренного Договором.","Участником указывается согласие или встречные условия"]
[9,"Согласие с условиями договора"]
[10,"Контактное лицо (ФИО, должность, телефон, e-mail)"]
[]
["Настоящее Предложение имеет правовой статус оферты и действует до \"  \" _____ 202_г."]
["Итоговая стоимость фиксируется в Договоре и должна включать весь комплекс работ \"под ключ\", при этом закрытие актов выполненных работ будет производиться по ценообразованию, закрепленному в Договоре"]
["* в случае, если при согласовании сметы будет выявлено, что Кд не соответствует итоговой стоимости СМР, Кд устанавливается по согласованной с Заказчиком смете по описанной в ТЗ и Договоре методике расчета"]
[]
[]
[]
["(Должность уполномоченного представителя Участника)",null,null,null,"(Подпись)"]
[]
[]
["Примечание - коммерческое предложение необходимо оформить:"]
["- на фирменном бланке;"]
["- присвоить ему номер;"]
["- указать дату;"]
["- за подписью уполномоченного лица;"]

{"sheet":"1632-2021-3.4-КЖ ","index":1,"n_rows":19,"n_cols":22,"rows_kept":19,"cut":false,"hidden":false,"merged":[[8,2,8,6]]}
[]
["Терминал по перевалке минеральных удобрений в морском торговом порту Усть-Луга. Береговые объекты терминала"]
["(наименование стройки)"]
[]
[]
["(локальная смета)"]
[]
["(наименование работ и затрат, наименование объекта)"]
[null,"Основание:"]
["№ п/п","Обоснование","Наименование работ и затрат","Ед. изм.","Кол-во","Цена за ед.измерения работ, руб. с НДС","Всего, стоимость работ,руб. с НДС","Цена за ед.измерения материалов, руб. с НДС","Всего, стоимость материалов, руб. с НДС","Итого, руб. с НДС",null,null,null,null,null,null,null,"Цена за ед.измерения работ, руб. с НДС","Всего, стоимость работ,руб. с НДС","Цена за ед.измерения материалов, руб. с НДС","Всего, стоимость материалов, руб. с НДС","Итого, руб. с НДС"]
["1","2","3","4","5",6,7,8,9,10,"ВЗиС","ЗУ","Вахта","Перевозка","ЭМ","Непр.","НДС",6,7,8,9,10]
[null,null,null,null,null,null,null,null,null,null,1.052,1.0209999999999999,1.0349999999999999,1.0249999999999999,1.02,1.03,1.2]
[null,null,null,null,null,null,null,null,null,null,null,null,null,null,null,null,null,null,null,null,null,{"$f":"S13+U13","v":0}]
[null,null,null,null,null,null,null,null,null,null,null,null,null,null,null,null,null,null,null,null,null,{"$f":"S14+U14","v":0}]
[null,null,null,null,null,null,null,null,null,null,null,null,null,null,null,null,null,null,null,null,null,0]
[null,null,null,null,null,null,null,null,null,null,null,null,null,null,null,null,null,null,null,null,null,0]
[null,null,null,null,null,null,null,null,null,null,null,null,null,null,null,null,null,null,null,null,null,0]
[null,null,"Всего, руб. с НДС",null,null,null,{"$f":"SUM(G13:G17)","v":0},null,{"$f":"SUM(I13:I17)","v":0},{"$f":"SUM(J13:J17)","v":0},null,null,null,null,null,null,null,null,{"$f":"SUM(S13:S17)","v":0},null,{"$f":"SUM(U13:U17)","v":0},{"$f":"SUM(V13:V17)","v":0}]
[null,null,"Всего, руб. без НДС",null,null,null,{"$f":"G18/1.2","v":0},null,{"$f":"I18/1.2","v":0},{"$f":"J18/1.2","v":0},null,null,null,null,null,null,null,null,{"$f":"S18/1.2","v":0},null,{"$f":"U18/1.2","v":0},{"$f":"V18/1.2","v":0}]